Cogmind - Beta 10.2 @@@ ROGUE MODE // 2021.06.05 @ 12:40:50 Player: Plexion Result: Destroyed by as-59942 with Assembled Blade Performance ------------- Evolutions (0) 0 Regions Visited (2) 400 Robots Destroyed (13) 65 Value Destroyed (346) 346 Prototype IDs (2) 40 Alien Tech Used (0) 0 Bonus (0) 0 TOTAL SCORE: 851 Bonus ------- None Cogmind --------- Core Integrity 0/250 Matter 277/300 Energy 74/100 System Corruption 0% Temperature Cool (0) Movement Treading (180) Ox1 Location -10/Mines Parts ------- > --- POWER (1) -------- (None) > --- PROPULSION (2) --- Light Treads > --- UTILITY (2) ------ Large Storage Unit Large Storage Unit > --- WEAPON (2) ------- Assault Rifle Light Assault Rifle > --- INVENTORY (16) --- Light Ion Engine Medium Storage Unit Medium Storage Unit Experimental Sensor Array Medium Armor Plating Medium Armor Plating Medium Armor Plating Medium Armor Plating Small Laser Light Cannon Light Cannon Peak State ------------ > --- POWER ------------ Ion Engine > --- PROPULSION ------- Light Treads Light Treads > --- UTILITY ---------- Large Storage Unit Large Storage Unit > --- WEAPON ----------- Heavy EM Pulse Gun Heavy EM Pulse Gun > --- INVENTORY -------- Light Ion Engine Light Ion Engine Light Ion Engine Light Treads Medium Storage Unit Medium Storage Unit Medium Armor Plating Medium Armor Plating Medium Armor Plating Medium Armor Plating Heavy EM Pulse Gun Small Laser Assault Rifle Light Assault Rifle Light Cannon [Rating: 11] Favorites ----------- Power Ion Engine Engine Ion Engine Propulsion Light Treads Treads Light Treads Utility Large Storage Unit Storage Large Storage Unit Weapon Heavy EM Pulse Gun Energy Gun Heavy EM Pulse Gun Ballistic Gun Assault Rifle Ballistic Cannon Light Cannon Build | -11 -10 -10 ------- Run | Scr Mat Min Slots Evolved . | . . . Power . | . . . Propulsion . | . . . Utility . | . . . Weapon . | . . . Parts Attached 20 | 6 7 7 Power 3 | 1 2 . Engine 3 | 1 2 . Core . | . . . Reactor . | . . . Propulsion 3 | 2 . 1 Treads 3 | 2 . 1 Leg . | . . . Wheel . | . . . Hover . | . . . Flight . | . . . Utility 3 | 1 2 . Device . | . . . Storage 3 | 1 2 . Processor . | . . . Hackware . | . . . Protection . | . . . Artifact . | . . . Weapon 11 | 2 3 6 Energy Gun 5 | . 3 2 Energy Cannon . | . . . Ballistic Gun 4 | 2 . 2 Ballistic Cannon 2 | . . 2 Launcher . | . . . Special Weapon . | . . . Impact Weapon . | . . . Slashing Weapon . | . . . Piercing Weapon . | . . . Special Melee Weapon . | . . . Unidentified Prototypes . | . . . Parts Lost 6 | . 1 5 Power 1 | . . 1 Propulsion 1 | . . 1 Utility . | . . . Weapon 4 | . 1 3 Highest Loss Streak 3 | . 1 3 Average Slot Usage (%) 96 | . 96 96 Engine 12 | . 14 11 Treads 28 | . 28 28 Storage 26 | . 24 28 Energy Gun 25 | . 27 24 Naked Turns . | . . . Heaviest Build 43 | 10 43 43 Greatest Support 40 | 40 40 40 Greatest Overweight (x) 1 | 1 1 1 Average Overweight (x) . | . . . Largest Inventory Capacity 16 | 6 16 16 Average Capacity 14 | 5 13 16 Most Carried 15 | 2 15 15 Average Carried 11 | . 10 14 Final Capacity 16 | 6 16 16 Final Carried 14 | 2 14 11 Class Distribution -------------------- 100% | Mutant Dominant Class ---------------- Mutant | -10/Materials Mutant | -10/Mines Resources | -11 -10 -10 ----------- Run | Scr Mat Min Matter Collected 417 | 255 70 92 Remotely . | . . . Salvage Created 527 | . 333 194 Parts 26 | . 22 4 Haulers Intercepted 1 | . 1 . Recyclers Shooed 1 | . . 1 Parts Field Recycled . | . . . Retrieved Matter . | . . . Parts Self-Destructed . | . . . Prevented . | . . . Kills | -11 -10 -10 ------- Run | Scr Mat Min Combat Hostiles Destroyed 15 | . 7 8 Guns 14 | . 7 7 Classes Destroyed 7 | . 5 2 Builder 1 | . 1 . Hauler 1 | . 1 . Operator 1 | . 1 . Swarmer 3 | . 3 . Grunt 6 | . 4 2 Demolisher 1 | . . 1 Assembled 5 | . . 5 Best Kill Streak 4 | . 4 2 Combat Bots Only 3 | . 3 2 Max Kills in Single Turn 2 | . 2 2 Gunslinging 1 | . . 1 Exploded . | . . . Melee . | . . . Uniques/NPCs Destroyed . | . . . Combat | -11 -10 -10 -------- Run | Scr Mat Min Damage Taken 972 | . 238 734 Core 261 | . 21 240 Absorbed by Shields . | . . . Core Remaining (%) 100 | 100 . . Volleys Fired 57 | . 24 33 Largest 2 | . 2 2 Hottest 90 | . 90 90 Shots Fired 110 | . 44 66 Gun 102 | . 44 58 Cannon 8 | . . 8 Launcher . | . . . Special . | . . . Kinetic 18 | . . 18 Thermal . | . . . Explosive . | . . . Electromagnetic 92 | . 44 48 Robot Hit Streak 6 | . 4 6 Robot Miss Streak 3 | . 3 3 Penetration Max . | . . . Secondary Targets 2 | . 1 1 Max Gunslinging Chain 1 | . 1 1 Shots Hit Robots 63 | . 23 40 Core Hits 27 | . 11 16 Critical Hits 1 | . . 1 Critical Kills . | . . . Critical Parts Destroyed 1 | . . 1 Melee Attacks . | . . . Impact . | . . . Slashing . | . . . Piercing . | . . . Sneak Attacks . | . . . Combat Hostiles . | . . . Follow-up Attacks . | . . . Damage Inflicted 881 | . 389 492 Guns 845 | . 389 456 Cannons 36 | . . 36 Explosions . | . . . Melee . | . . . Ramming . | . . . Kinetic 119 | . . 119 Thermal . | . . . Explosive . | . . . Electromagnetic 762 | . 389 373 Impact . | . . . Slashing . | . . . Piercing . | . . . Highest Corruption . | . . . Average Corruption . | . . . Corruption Purged . | . . . Overload Shots . | . . . Overflow Damage . | . . . Projectiles . | . . . Explosions . | . . . Melee . | . . . Knockbacks . | . . . Impact . | . . . Kinetic . | . . . Secondary . | . . . Self-Inflicted Damage . | . . . Shots . | . . . Rammed . | . . . Targets Rammed . | . . . Kicked . | . . . Crushed . | . . . Highest Temperature 270 | . 168 270 Average Temperature 83 | . 75 91 Received Heat Transfer 193 | . 33 160 Siege Activations . | . . . Robots Corrupted 1 | . . 1 Combat Hostiles 1 | . . 1 Parts Fried 1 | . 1 . Impact Corruptions . | . . . Robots Melted . | . . . Combat Hostiles . | . . . Parts Melted . | . . . Heat Transferred . | . . . Parts Sabotaged . | . . . Parts Stolen . | . . . Parts Stripped . | . . . Power Chain Reactions . | . . . Missiles Intercepted . | . . . Alert | -11 -10 -10 ------- Run | Scr Mat Min Peak Influence 179 | . 179 83 Initial 33 | . . 33 Average 63 | . 73 60 Maximum Alert Level . | . . . Low Security (%) 100 | 100 100 100 Level 1 . | . . . Level 2 . | . . . Level 3 . | . . . Level 4 . | . . . Level 5 . | . . . High Security . | . . . Max Security . | . . . Squads Dispatched 1 | . 1 . Investigation . | . . . Extermination . | . . . Reinforcement 1 | . 1 . Assault . | . . . Garrison . | . . . Intercept . | . . . Construction Impeded . | . . . Haulers Reinforced . | . . . Stealth | -11 -10 -10 --------- Run | Scr Mat Min Distress Signals . | . . . Communications Jammed . | . . . Distress Signals . | . . . Times Spotted 28 | . 14 14 Peak Tracking Total 4 | . 3 4 Tactical Retreats 3 | . 1 2 Traps | -11 -10 -10 ------- Run | Scr Mat Min Traps Triggered . | . . . Indirectly . | . . . Trap Hack Attempts . | . . . Triggered . | . . . Disarmed . | . . . Reprogrammed . | . . . Reused . | . . . Traps Extracted . | . . . Installed . | . . . Triggered . | . . . Machines | -11 -10 -10 ---------- Run | Scr Mat Min Machines Disabled 1 | . 1 . Max in Single Turn 1 | . 1 . Machines Sabotaged . | . . . Garrisons Compromised . | . . . Overloaded Fab Kills . | . . . Fab Network Shutdowns . | . . . Hacking | -11 -10 -10 --------- Run | Scr Mat Min Machines Accessed 3 | . 3 . Terminals 3 | . 3 . Fabricators . | . . . Repair Stations . | . . . Recycling Units . | . . . Scanalyzers . | . . . Garrison Access . | . . . Total Hacks 13 | . 13 . Successful 7 | . 7 . Failed 6 | . 6 . Catastrophic 1 | . 1 . Database Lockouts . | . . . Manual 11 | . 11 . Terminals 13 | . 13 . Fabricators . | . . . Repair Stations . | . . . Recycling Units . | . . . Scanalyzers . | . . . Garrison Access . | . . . Terminal Hacks 3 | . 3 . Robot Analysis 1 | . 1 . Prototype ID Bank 1 | . 1 . Zone Layout 1 | . 1 . Fabricator Hacks . | . . . Repair Station Hacks . | . . . Recycling Unit Hacks . | . . . Scanalyzer . | . . . Garrison Access Hacks . | . . . Unauthorized Hacks 4 | . 4 . Terminals 4 | . 4 . Track 2 | . 2 . Disrupt 2 | . 2 . Fabricators . | . . . Repair Stations . | . . . Recycling Units . | . . . Scanalyzers . | . . . Garrison Access . | . . . Data Cores Recovered 1 | . 1 . Used . | . . . Hacking Detections 2 | . 2 . Full Trace Events . | . . . Feedback Events . | . . . Feedback Blocked . | . . . Robot Schematics Acquired . | . . . Robots Built . | . . . Matter . | . . . Time . | . . . Total Robot Build Rating . | . . . Part Schematics Acquired . | . . . Parts Built . | . . . Matter . | . . . Time . | . . . Total Part Build Rating . | . . . Parts Repaired . | . . . Time . | . . . Parts Recycled . | . . . Recycled Matter . | . . . Retrieved Matter . | . . . Retrieved Components . | . . . Parts Scanalyzed . | . . . Part Schematics Acquired . | . . . Parts Damaged . | . . . Bothacking | -11 -10 -10 ------------ Run | Scr Mat Min Used RIF Installer . | . . . Robots Hacked . | . . . Non-combat . | . . . Combat . | . . . Robot Hacks Applied . | . . . Relay Couplers Released . | . . . Robots Rewired . | . . . Allies Hacked . | . . . Hacks Repelled . | . . . Allies | -11 -10 -10 -------- Run | Scr Mat Min Total Allies . | . . . Largest Group . | . . . Highest-Rated Group . | . . . Highest-Rated Ally . | . . . Total Orders . | . . . Ally Attacks . | . . . Total Damage . | . . . Kills . | . . . Allies Corrupted . | . . . Allies Melted . | . . . Intel | -11 -10 -10 ------- Run | Scr Mat Min Robot Analysis Total 1 | . 1 . Derelict Logs Recovered 1 | . . 1 Drone Launches . | . . . Drone Recoveries . | . . . Exploration | -11 -10 -10 ------------- Run | Scr Mat Min Turns Passed 1226 | 65 625 536 Spaces Moved 569 | 37 306 226 Core 4 | 4 . . Treads 565 | 33 306 226 Legs . | . . . Wheels . | . . . Hover . | . . . Flight . | . . . Fastest Speed 50 | 50 160 160 Average Speed 174 | 149 174 178 Slowest Speed 180 | 160 180 180 Overloaded Moves . | . . . Propulsion Burnouts . | . . . Robots Hopped . | . . . Cave-ins Triggered . | . . . Exploration Rate (%) 35 | 3 58 46 Regions Visited 2 Branch Regions 1 Pre-discovered Areas . | . . . Known Exits Taken . | . . . Unknown Exits Taken 2 | 1 1 . Scrap Searched . | . . . Spaces Dug . | . . . Terrain Destroyed . | . . . Melee . | . . . Projectile . | . . . AOE . | . . . Terrain Rammed . | . . . Walls Destroyed . | . . . Machines Disabled . | . . . Actions | -11 -10 -10 --------- Run | Scr Mat Min Total 688 | 44 352 292 Wait 25 | . . 25 Move 567 | 36 305 226 Hop . | . . . Pick Up 14 | 2 11 1 Fast Attach 9 | 6 3 . Attach 5 | . 1 4 Detach 2 | . 2 . Swap 6 | . 3 3 Drop 3 | . 3 . Fire 57 | . 24 33 Melee . | . . . Ram . | . . . Kick . | . . . Crush . | . . . Escape Stasis . | . . . Rewire . | . . . Trap . | . . . Miscellaneous . | . . . Route ------- -11/Scrapyard -10/Materials (discovered 2 exits: [*Mat] / [*Min]) -10/Mines (discovered 1 exit: [*Mat]) History --------- Turn | Location | Event 9 | -11/Scrapyard | Discovered new exit (range 16) 66 | -11/Scrapyard | Entered Materials 315 | -10/Materials | Discovered new exit (range 16) 317 | -10/Materials | Build established: Mutant 515 | -10/Materials | Discovered new exit (range 16) 691 | -10/Materials | Entered Mines 697 | -10/Mines | Discovered new exit (range 13) 705 | -10/Mines | Learned 4 Materials zone layouts 726 | -10/Mines | Found a damaged Exp. Sensor Array with a note attached 730 | -10/Mines | Found Prototype Device 960 | -10/Mines | Assembled infested the area 965 | -10/Mines | Assisted by a Guerilla fighting off Assembled 1125 | -10/Mines | Core integrity fell below 50% 1161 | -10/Mines | Lost 3 parts (1p1n1w) 1189 | -10/Mines | Core integrity fell below 20% 1227 | -10/Mines | Destroyed by as-59942 with Assembled Blade Last Messages --------------- 01210_ as-80436 sneak attacks. 01210_ U-05 Engineer system corrupted by crushing effect. 01210_ U-05 Engineer knocked back. 01211_ K-01 Serf collects debris. 01211_ R-06 Scavenger collects Terrain Scan Processor. 01214_ R-06 Scavenger collects Wheel. 01215_ K-01 Serf collects debris. 01216_ R-06 Scavenger destroyed. 01218_ K-01 Serf collects debris. 01218_ R-06 Scavenger collects Welding Torch. 01220_ The unstable cave ceiling collapses. 01220_ K-01 Serf collects debris. 01220_ as-80436 destroyed. 01221_ The unstable cave ceiling collapses. 01221_ R-06 Scavenger collects Wheel. 01222_ Hvy. EM Pulse Gun destroyed. 01223_ The unstable cave ceiling collapses. 01223_ K-01 Serf collects debris. 01224_ Lgt. Treads severed. 01226_ The unstable cave ceiling collapses. Map ----- +----------------------------------------------------+ | ??????????????????????????????????????????? | | ??????????????????????????????????????????? | | ??????????????????????????????????????????? | | ??????????????????????????????????????????? | | ??????????????????????????????????????????? | | ??????????????????????????????????????????? | | ??????????????????????????????????????????? | | ??????????????????????????????????????????? | | ??????????????????????????????????????????? | | ??????????????????????????????????????????? | | ????????????????????????????# ???????????? | | ???????????????????????????## ???????????? | | ???????????????????????????# ? ?????????? | | ?????????????????????###???# ??????????? | | ????????????????????? #?## ??????????? | | ????????????????????# ## #??????????? | | ????????????????????? ##?????????? | | ?????????????????????? ##????????? | | ??????????????????##???# ##???????? | | ??????????????????? ???? #???????? | | ???????????????????# ???# #???????? | | ?????????????????### #### # =t ####????? | | ?????????????????# # # #????? | | ?????????????????# < !!# # #????? | | ?????????????????# %%ra% ##???? | | ?????????????????# !=%%@ # #???? | | ?????????????????# =# #???? | | ?????????????????# ?? # # # #???? | | ?????????????????????## # #????? | | ????????????????????## #k## %######????? | | ????????????????????# a #% ######????? | | ????????????????????# # =*%=!%*#????? | | ????????############# k !#### #????? | | ?###????# !%=! % #??# #????? | | ## #???# ##### ### #??# #????? | | # ##???????# #?# ### #??# ###??? | | ##??????# #?# # ##?# #??? | | ??????# #?## # ### ##### #??? | | ? ???????# ####### ####### #??# #??? | | ?? ???????# ## #??# #??? | | ??# #???????############## ## #??# #??? | | ?## #??????????????####??# ## #??# #??? | | ## #?????????????## #### ### #??# #??? | | # ######?????#### % #??###??# #??? | | # #?????# #####??????## #??? | | ## ####??# ### ##????????## ##?? | | ?# #### #??# #?## ##???????# ##? | | ?# #?####%#??# #??## ###?????# #? | | ?## #???#%#??# #???# ##???## #? | | ??# #???# #### #???## ##### #? | +----------------------------------------------------+ Best States ------------- Heat Dissipation 25 Energy Generation 10 Energy Capacity 250 Matter Stores 300 Matter Capacity 300 Sight Range 16 Terrain Scan Density 10 Evasion (%) 40 Recoil Reduction 2 Item Schematics ----------------- None Robot Schematics ------------------ None Fabricated ------------ Nothing Alien Tech Used ----------------- None Achievements -------------- None Challenges ------------ None Game ------ Seed AssaultPhasingMinigun Manual? 0 Play Time 00:08:25 Cumulative 181.4 hours Start 2021.06.05 @ 12:34:57 End 2021.06.05 @ 12:40:50 Sessions 1 Manual Loads 0 Difficulty Rogue Special Mode None Game No. 228 Rogue 141 Adventurer 87 Explorer 0 Win Type - Total 4 Types 3/0/0/1/0/0/0/0/0 Lore% 65 Gallery% 73 Achievement% 60 Wizard Run 0 Options --------- ASCII 0 Keyboard 1 Movement Numpad Keybinds 0 Fullscreen 1 Font 18/Smallcaps Map View 76x50 Tactical HUD 1 Map Filters NONE Filters NONE Steam 1 RUN: 1c4274de-028f-481d-991e-adb549edc997